[Event "55th Rubinstein Memorial-B 2019"]
[Site "Polanica-Zdroj"]
[Date "2019.08.24"]
[Round "8.6"]
[White "Idesis, Yaacov"]
[Black "Dembowski, Andrzej"]
[Result "1-0"]
[ECO "A43"]
[WhiteElo "1856"]
[BlackElo "1840"]
[Annotator "NA"]
[PlyCount "137"]
[EventDate "2019.08.17"]
[EventType "swiss"]
[EventCountry "POL"]
[SourceTitle "playchess.com"]
[Source "ChessBase"]
[SourceQuality "1"]
[TimeControl "40/5400+30:1800+30"]

1. d4 c5 2. Nf3 cxd4 3. Qxd4 d6 4. c3 Nf6 5. Qd1 g6 6. Bf4 Bg7 7. e3 O-O 8. Be2 Nbd7 9. Nbd2 Nh5 10. Bg3 a6 11. a4 Nxg3 12. hxg3 Nf6 13. a5 Re8 14. Nc4 Rb8 15. Nb6 Be6 16. Nd4 Bd7 17. O-O Qc7 18. Qc2 d5 19. Rfd1 e5 20. Nxd7 Qxd7 21. Nf3 Qc6 22. Qa4 Qc7 23. Rac1 Rbd8 24. Bf1 Ne4 25. Nd2 Nc5 26. Qa2 Qc6 27. b4 Ne6 28. Qb3 Nc7 29. c4 d4 30. b5 Qc5 31. Ne4 Qe7 32. b6 Ne6 33. c5 dxe3 34. Qxe3 Rxd1 35. Rxd1 Nd4 36. Bc4 Nc6 37. Nd6 Rf8 38. Qd2 Kh8 39. Qa2 Nd8 40. Bd5 h6 41. Qb3 f5 42. Qc4 e4 43. Qe2 Be5 44. Nc4 Bf6 45. Qd2 Kg7 46. Nd6 Be5 47. Bb3 Nc6 48. Nc4 Bd4 49. Ba4 Rd8 50. Qe2 Qxc5 51. Bxc6 bxc6 52. Rb1 Qe7 53. Ne3 Qb7 54. Nc2 c5 55. Qc4 Kf6 56. Ne3 Ke5 57. Qe2 h5 58. Kh2 Kf6 59. Nc4 Rd7 60. Qd2 g5 61. Qe2 f4 62. gxf4 gxf4 63. Kg1 f3 64. gxf3 exf3 65. Qe8 Qd5 66. Qf8+ Rf7 67. Qh6+ Ke7 68. b7 Bg7 69. Qd6+ 1-0

[Event "55th Rubinstein Memorial-B 2019"]
[Site "Polanica-Zdroj"]
[Date "2019.08.25"]
[Round "9.1"]
[White "Shilov, Sergej"]
[Black "Margovsky, Naum"]
[Result "1-0"]
[ECO "C10"]
[WhiteElo "2129"]
[BlackElo "2002"]
[Annotator "NA"]
[PlyCount "121"]
[EventDate "2019.08.17"]
[EventType "swiss"]
[EventCountry "POL"]
[SourceTitle "playchess.com"]
[Source "ChessBase"]
[SourceQuality "1"]
[TimeControl "40/5400+30:1800+30"]

1. e4 {[%emt 0:00:00]} e6 {[%emt 0:00:00]} 2. d4 {[%emt 0:00:00]} d5 {[%emt 0:00:00]} 3. Nc3 {[%emt 0:00:00]} dxe4 {[%emt 0:00:10]} 4. Nxe4 {[%emt 0:00:07]} Bd7 {[%emt 0:00:11]} 5. Nf3 {[%emt 0:00:59]} Bc6 {[%emt 0:00:10]} 6. Bd3 {[%emt 0:00:50]} Nd7 {[%emt 0:00:14]} 7. Qe2 {[%emt 0:01:43]} Ngf6 {[%emt 0:00:34]} 8. Ng3 {[%emt 0:08:22]} Be7 {[%emt 0:02:33]} 9. Bd2 {[%emt 0:00:16]} O-O {[%emt 0:04:11]} 10. O-O {[%emt 0:02:54]} Bxf3 {[%emt 0:02:15]} 11. Qxf3 {[%emt 0:00:21]} c5 {[%emt 0:00:12]} 12. Bc3 {[%emt 0:10:09]} Qb6 {[%emt 0:10:58]} 13. Rad1 {[%emt 0:01:09]} Nd5 {[%emt 0:00:45]} 14. dxc5 {[%emt 0:03:59]} Nxc5 {[%emt 0:02:54]} 15. Nf5 {[%emt 0:03:34]} Bf6 {[%emt 0:03:40]} 16. Bxf6 {[%emt 0:21:54]} Nxf6 {[%emt 0:00:22]} 17. Nh6+ {[%emt 0:00:23]} Kh8 {[%emt 0:01:07]} 18. b3 {[%emt 0:03:40]} Qb4 {[%emt 0:00:56]} 19. h3 {[%emt 0:02:58]} Rad8 {[%emt 0:06:29]} 20. Bc4 {[%emt 0:02:32]} Ncd7 {[%emt 0:02:57]} 21. Ng4 {[%emt 0:01:43]} Nxg4 {[%emt 0:00:52]} 22. Qxg4 {[%emt 0:06:53]} Ne5 {[%emt 0:01:29]} 23. Qh4 {[%emt 0:01:49]} Rxd1 {[%emt 0:04:52]} 24. Rxd1 {[%emt 0:00:16]} b5 {[%emt 0:01:45]} 25. a3 {[%emt 0:06:06]} Qc5 {[%emt 0:00:34]} 26. Be2 {[%emt 0:01:06]} Qxc2 {[%emt 0:01:02]} 27. Qb4 {[%emt 0:03:44]} Ng6 {[%emt 0:06:01]} 28. Qxb5 {[%emt 0:02:22]} h6 {[%emt 0:01:18]} 29. g3 {[%emt 0:02:19]} Rc8 {[%emt 0:01:10]} 30. Rd7 {[%emt 0:01:30]} Qb1+ {[%emt 0:03:03]} 31. Rd1 {[%emt 0:01:21]} Qe4 {[%emt 0:00:46]} 32. Qd7 {[%emt 0:01:15]} Rf8 {[%emt 0:01:16]} 33. Bd3 {[%emt 0:01:32]} Qf3 {[%emt 0:00:47]} 34. Re1 {[%emt 0:00:19]} Qd5 {[%emt 0:02:35]} 35. Qxd5 {[%emt 0:02:00]} exd5 {[%emt 0:00:03]} 36. h4 {[%emt 0:02:12]} Rb8 {[%emt 0:00:13]} 37. b4 {[%emt 0:00:16]} Kg8 {[%emt 0:02:40]} 38. h5 {[%emt 0:00:28]} Nf8 {[%emt 0:00:22]} 39. Re7 {[%emt 0:00:04]} Ra8 {[%emt 0:00:54]} 40. Bf5 {[%emt 0:00:00]} d4 {[%emt 0:00:00]} 41. Kf1 {[%emt 0:01:22]} a6 {[%emt 0:02:49]} 42. Ke2 {[%emt 0:01:05]} Rb8 {[%emt 0:00:38]} 43. Ra7 {[%emt 0:00:36]} Rb5 {[%emt 0:00:51]} 44. g4 {[%emt 0:00:20]} g6 {[%emt 0:00:35]} 45. hxg6 {[%emt 0:00:48]} fxg6 {[%emt 0:00:08]} 46. Bd3 {[%emt 0:00:27]} Re5+ {[%emt 0:00:22]} 47. Kd2 {[%emt 0:00:43]} h5 {[%emt 0:00:36]} 48. Bc4+ {[%emt 0:03:46]} Kh8 {[%emt 0:00:26]} 49. Rf7 {[%emt 0:00:34]} Nh7 {[%emt 0:00:41]} 50. gxh5 {[%emt 0:00:39]} gxh5 {[%emt 0:00:20]} 51. f4 {[%emt 0:00:58]} Re3 {[%emt 0:00:40]} 52. Bd3 {[%emt 0:03:57]} Kg8 {[%emt 0:00:49]} 53. Rxh7 {[%emt 0:00:38]} Rxd3+ {[%emt 0:00:18]} 54. Kxd3 {[%emt 0:00:01]} Kxh7 {[%emt 0:00:02]} 55. Kxd4 {[%emt 0:00:02]} Kg6 {[%emt 0:00:06]} 56. Ke4 {[%emt 0:00:12]} h4 {[%emt 0:00:08]} 57. a4 {[%emt 0:00:24]} h3 {[%emt 0:00:10]} 58. Kf3 {[%emt 0:00:09]} Kf5 {[%emt 0:00:03]} 59. b5 {[%emt 0:01:24]} axb5 {[%emt 0:00:07]} 60. axb5 {[%emt 0:00:07]} h2 {[%emt 0:00:05]} 61. Kg2 {[%emt 0:00:05]} 1-0

[Event "55th Rubinstein Memorial-B 2019"]
[Site "Polanica-Zdroj"]
[Date "2019.08.25"]
[Round "9.2"]
[White "Fainberg, Boris"]
[Black "Klimaszewski, Dariusz"]
[Result "1-0"]
[ECO "A40"]
[WhiteElo "2030"]
[BlackElo "2152"]
[Annotator "NA"]
[PlyCount "61"]
[EventDate "2019.08.17"]
[EventType "swiss"]
[EventCountry "POL"]
[SourceTitle "playchess.com"]
[Source "ChessBase"]
[SourceQuality "1"]
[TimeControl "40/5400+30:1800+30"]

1. d4 {[%emt 0:00:00]} b5 {[%emt 0:00:00]} 2. Nf3 {[%emt 0:03:55]} e6 {[%emt 0:00:49]} 3. e4 {[%emt 0:01:36]} a6 {[%emt 0:00:10]} 4. Bd3 {[%emt 0:02:30]} Bb7 {[%emt 0:00:10]} 5. O-O {[%emt 0:04:17]} c5 {[%emt 0:01:13]} 6. c3 {[%emt 0:02:16]} Nf6 {[%emt 0:01:28]} 7. Re1 {[%emt 0:01:47]} d6 {[%emt 0:01:52]} 8. Nbd2 {[%emt 0:06:35]} Nfd7 {[%emt 0:02:07]} 9. Nf1 {[%emt 0:03:21]} Be7 {[%emt 0:01:48]} 10. a4 {[%emt 0:13:33]} bxa4 {[%emt 0:06:24]} 11. Qxa4 {[%emt 0:01:26]} O-O {[%emt 0:00:43]} 12. Ng3 {[%emt 0:02:29]} g6 {[%emt 0:04:37]} 13. Qd1 {[%emt 0:02:59]} Nc6 {[%emt 0:01:57]} 14. dxc5 {[%emt 0:05:36]} Nxc5 {[%emt 0:03:16]} 15. Bc2 {[%emt 0:00:23]} a5 {[%emt 0:00:38]} 16. Nd4 {[%emt 0:09:27]} Nxd4 {[%emt 0:02:09]} 17. cxd4 {[%emt 0:01:21]} Nd7 {[%emt 0:00:28]} 18. Bd2 {[%emt 0:03:11]} Bf6 {[%emt 0:08:01]} 19. Bc3 {[%emt 0:00:43]} Nb8 {[%emt 0:00:42]} 20. Qd2 {[%emt 0:08:16]} Nc6 {[%emt 0:00:54]} 21. Ne2 {[%emt 0:02:45]} Qb6 {[%emt 0:04:53]} 22. d5 {[%emt 0:03:12]} Bxc3 {[%emt 0:00:55]} 23. bxc3 {[%emt 0:00:24]} Ne5 {[%emt 0:00:53]} 24. Reb1 {[%emt 0:01:01]} Qa7 {[%emt 0:01:15]} 25. Qd4 {[%emt 0:02:33]} exd5 {[%emt 0:00:56]} 26. exd5 {[%emt 0:00:29]} Nd7 {[%emt 0:01:06]} 27. Ba4 {[%emt 0:01:20]} Nc5 {[%emt 0:01:55]} 28. Bc6 {[%emt 0:01:31]} Bxc6 {[%emt 0:01:43]} 29. dxc6 {[%emt 0:00:02]} Qc7 {[%emt 0:05:47]} 30. Nf4 {[%emt 0:01:00]} Ne6 {[%emt 0:01:01]} 31. Nxe6 {[%emt 0:05:21]} 1-0

[Event "55th Rubinstein Memorial-B 2019"]
[Site "Polanica-Zdroj"]
[Date "2019.08.25"]
[Round "9.3"]
[White "Meizlin, Yaacov"]
[Black "Idesis, Yaacov"]
[Result "0-1"]
[ECO "B10"]
[WhiteElo "2027"]
[BlackElo "1856"]
[Annotator "NA"]
[PlyCount "114"]
[EventDate "2019.08.17"]
[EventType "swiss"]
[EventCountry "POL"]
[SourceTitle "playchess.com"]
[Source "ChessBase"]
[SourceQuality "1"]
[TimeControl "40/5400+30:1800+30"]

1. e4 c6 2. Nc3 d5 3. Qf3 dxe4 4. Nxe4 Nf6 5. Bc4 h6 6. Nxf6+ exf6 7. Ne2 Bd6 8. d4 O-O 9. O-O Qc7 10. h3 Be6 11. Bd3 Bd5 12. Qf5 g6 13. Qxf6 Nd7 14. Qh4 h5 15. c4 Be6 16. c5 Nxc5 17. dxc5 Bxc5 18. Bf4 Bd6 19. Bh6 Rfe8 20. Qf6 Be5 21. Qh4 Bxb2 22. Rab1 Bh8 23. Bc4 Bf5 24. Rbe1 Re4 25. Bf4 Rxc4 26. Bxc7 Rxh4 27. f4 Re8 28. Kh2 g5 29. fxg5 Be5+ 30. Ng3 Bxg3+ 31. Bxg3 Rhe4 32. Rxe4 Bxe4 33. Re1 Re6 34. Bf2 b6 35. Kg3 Kh7 36. a3 Kg6 37. h4 Bd5 38. Rxe6+ fxe6 39. Be3 Kf5 40. Kf2 e5 41. g3 c5 42. a4 a5 43. g6 Kxg6 44. Bg5 Bc6 45. Bd8 Bxa4 46. Bxb6 c4 47. Bxa5 Kf5 48. Bc7 Ke4 49. Ke2 c3 50. Ke1 Kd4 51. Ke2 Bb5+ 52. Kd1 e4 53. Ba5 Kd3 54. Bb4 c2+ 55. Kc1 e3 56. Bc5 Ba4 57. Bb4 Ke2 0-1

[Event "55th Rubinstein Memorial-B 2019"]
[Site "Polanica-Zdroj"]
[Date "2019.08.25"]
[Round "9.4"]
[White "Janocha, Wieslaw"]
[Black "Drazek, Wladyslaw"]
[Result "1-0"]
[ECO "E17"]
[WhiteElo "2264"]
[BlackElo "1864"]
[Annotator "NA"]
[PlyCount "60"]
[EventDate "2019.08.17"]
[EventType "swiss"]
[EventCountry "POL"]
[SourceTitle "playchess.com"]
[Source "ChessBase"]
[SourceQuality "1"]
[TimeControl "40/5400+30:1800+30"]

1. d4 {[%emt 0:00:10]} Nf6 {[%emt 0:00:12]} 2. Nf3 {[%emt 0:00:09]} e6 {[%emt 0:00:13]} 3. c4 {[%emt 0:01:16]} b6 {[%emt 0:00:44]} 4. g3 {[%emt 0:00:06]} Bb7 {[%emt 0:00:09]} 5. Bg2 {[%emt 0:00:02]} Be7 {[%emt 0:01:42]} 6. O-O {[%emt 0:00:07]} O-O {[%emt 0:00:22]} 7. d5 {[%emt 0:00:04]} exd5 {[%emt 0:00:26]} 8. Nh4 {[%emt 0:00:03]} Re8 {[%emt 0:01:18]} 9. cxd5 {[%emt 0:00:21]} d6 {[%emt 0:01:18]} 10. Nf5 {[%emt 0:03:10]} Bf8 {[%emt 0:00:52]} 11. Nc3 {[%emt 0:00:30]} Nbd7 {[%emt 0:00:30]} 12. Qc2 {[%emt 0:05:55]} a5 {[%emt 0:00:20]} 13. a3 {[%emt 0:02:54]} Nc5 {[%emt 0:00:27]} 14. Bg5 {[%emt 0:01:18]} a4 {[%emt 0:04:04]} 15. Rad1 {[%emt 0:00:27]} h6 {[%emt 0:01:50]} 16. Bf4 {[%emt 0:06:05]} Ba6 {[%emt 0:01:03]} 17. Rd4 {[%emt 0:17:33]} Bc8 {[%emt 0:07:59]} 18. Rc4 {[%emt 0:04:06]} Bd7 {[%emt 0:01:13]} 19. Rd1 {[%emt 0:02:08]} Qc8 {[%emt 0:00:35]} 20. Nd4 {[%emt 0:01:30]} Ng4 {[%emt 0:01:05]} 21. Nc6 {[%emt 0:01:18]} g5 {[%emt 0:04:20]} 22. Bc1 {[%emt 0:01:55]} Ne5 {[%emt 0:00:38]} 23. Nxe5 {[%emt 0:09:16]} Rxe5 {[%emt 0:01:53]} 24. f4 {[%emt 0:01:05]} gxf4 {[%emt 0:00:51]} 25. Rxf4 {[%emt 0:00:49]} Bg7 {[%emt 0:01:30]} 26. Rdf1 {[%emt 0:01:55]} Re7 {[%emt 0:01:38]} 27. Rh4 {[%emt 0:00:43]} Qf8 {[%emt 0:00:12]} 28. Bg5 {[%emt 0:03:31]} f6 {[%emt 0:00:45]} 29. Bxf6 {[%emt 0:01:10]} Bxf6 {[%emt 0:03:27]} 30. Qg6+ {[%emt 0:00:18]} Qg7 {[%emt 0:04:22]} 1-0

[Event "55th Rubinstein Memorial-B 2019"]
[Site "Polanica-Zdroj"]
[Date "2019.08.25"]
[Round "9.5"]
[White "Marusenko, Petr"]
[Black "Solek, Zenon"]
[Result "1/2-1/2"]
[ECO "A56"]
[WhiteElo "2124"]
[BlackElo "1782"]
[Annotator "NA"]
[PlyCount "72"]
[EventDate "2019.08.17"]
[EventType "swiss"]
[EventCountry "POL"]
[SourceTitle "playchess.com"]
[Source "ChessBase"]
[SourceQuality "1"]
[TimeControl "40/5400+30:1800+30"]

1. d4 Nf6 2. c4 c5 3. d5 a6 4. g3 b5 5. Bg2 d6 6. Nf3 g6 7. O-O Bg7 8. Re1 O-O 9. e4 Nbd7 10. Qe2 bxc4 11. Nc3 Nb6 12. Bf4 Nh5 13. Bg5 h6 14. Bd2 Nf6 15. Rad1 a5 16. Bf4 Nh5 17. Bc1 Nf6 18. e5 Nh7 19. h4 Bg4 20. Qe3 Rc8 21. Qf4 Bxf3 22. exd6 exd6 23. Bxf3 g5 24. hxg5 Nxg5 25. Bg2 Qf6 26. Qg4 Rfe8 27. f4 Nh7 28. Ne4 Qe7 29. Bd2 Nf6 30. Nxf6+ Qxf6 31. Bxa5 Qxb2 32. Qf5 c3 33. Be4 Nc4 34. Bc2 Nxa5 35. Rb1 Qa3 36. Qd7 Red8 1/2-1/2

[Event "55th Rubinstein Memorial-B 2019"]
[Site "Polanica-Zdroj"]
[Date "2019.08.25"]
[Round "9.6"]
[White "Radzicki, Wieslaw"]
[Black "Kwiecien, Zbigniew"]
[Result "0-1"]
[ECO "C11"]
[WhiteElo "1773"]
[BlackElo "2024"]
[Annotator "NA"]
[PlyCount "68"]
[EventDate "2019.08.17"]
[EventType "swiss"]
[EventCountry "POL"]
[SourceTitle "playchess.com"]
[Source "ChessBase"]
[SourceQuality "1"]
[TimeControl "40/5400+30:1800+30"]

1. e4 e6 2. Nc3 d5 3. Nf3 Nf6 4. e5 Nfd7 5. d4 a6 6. Bg5 Be7 7. h4 c5 8. Ne2 Nc6 9. c3 cxd4 10. cxd4 f6 11. exf6 Nxf6 12. Nc3 O-O 13. Bd3 Bd7 14. Rc1 Be8 15. O-O Bh5 16. Be2 Qd6 17. g3 Rae8 18. a3 Ne4 19. Nxe4 dxe4 20. Bxe7 Rxe7 21. Ng5 Bxe2 22. Qxe2 Nxd4 23. Qxe4 g6 24. Kg2 e5 25. Rcd1 Qf6 26. f4 Nf5 27. fxe5 Rxe5 28. Qxb7 Re7 29. Qd5+ Kg7 30. Kh3 h6 31. Ne4 Qxb2 32. Rd3 Ne3 33. Rd2 Nxd5 34. Rxb2 Rxf1 0-1